bitfinex/quotes_BTCUSD_20241023
["timestamp","ask_amount","ask_price","bid_price","bid_amount"]
[1729715563247,0.66103515,66485.0,66473.0,0.22595636]
[1729715563472,0.83485749,66485.0,66473.0,0.22595636]
[1729715563698,0.51062615,66485.0,66473.0,0.22595636]
[1729715563920,0.150418,66481.0,66480.0,0.22595636]
[1729715564220,0.150428,66477.0,66473.0,0.22595636]
[1729715564563,0.150426,66478.0,66473.0,0.22595636]
[1729715565035,0.150426,66478.0,66473.0,0.37639336]
[1729715565494,0.451264,66480.0,66474.0,0.150433]
[1729715565734,0.32432615,66481.0,66479.0,0.150423]
[1729715565735,0.17382234,66481.0,66479.0,0.150423]
[1729715565989,0.17382234,66481.0,66479.0,0.150422]
[1729715567615,0.17382234,66481.0,66476.0,0.150429]
[1729715567876,0.150412,66484.0,66473.0,0.22595636]
[1729715568164,0.150412,66484.0,66475.0,0.300864]
[1729715568403,0.17382234,66488.0,66473.0,0.22595636]
[1729715568640,0.32432615,66488.0,66479.0,0.150422]
[1729715568871,0.150412,66484.0,66479.0,0.150422]
[1729715569576,0.150412,66484.0,66474.0,0.300869]
[1729715569797,0.300815,66486.0,66476.0,0.30086]
[1729715570046,0.150413,66484.0,66478.0,0.150425]
[1729715570500,0.47463734,66486.0,66478.0,0.150425]
[1729715570501,0.300819,66485.0,66478.0,0.150425]
[1729715570760,0.150413,66484.0,66479.0,0.150423]
[1729715570992,0.150426,66478.0,66473.0,0.37639136]
[1729715571242,0.150434,66474.0,66473.0,0.22595636]
[1729715571465,0.150431,66476.0,66473.0,0.22595636]
[1729715571710,0.300855,66477.0,66472.0,0.150439]
[1729715571711,0.150428,66477.0,66472.0,0.150439]
[1729715571966,0.17382234,66478.0,66468.0,0.300895]
[1729715572206,0.150431,66476.0,66470.0,0.37639936]
[1729715572435,0.32424834,66478.0,66471.0,0.300883]
[1729715572676,0.17382234,66478.0,66470.0,0.22595636]
[1729715572920,0.150429,66477.0,66471.0,0.15044]
[1729715573139,0.300829,66483.0,66472.0,0.150437]
[1729715573140,0.150425,66479.0,66472.0,0.150437]
[1729715573603,0.03,66477.0,66473.0,0.150435]
[1729715574342,0.15043,66476.0,66470.0,0.150442]
[1729715574602,0.00225641,66474.0,66470.0,0.150443]
[1729715574832,0.03,66477.0,66473.0,0.150437]
[1729715576458,0.03,66477.0,66474.0,0.150433]
[1729715576684,0.03,66477.0,66472.0,0.300878]
[1729715576918,0.150417,66482.0,66476.0,0.15043]
[1729715577883,0.15266894,66484.0,66477.0,0.22595636]
[1729715578104,0.15266894,66484.0,66475.0,0.300864]
[1729715578105,0.00225594,66484.0,66475.0,0.300864]
[1729715578338,0.00225594,66484.0,66479.0,0.150421]
[1729715578557,0.03,66480.0,66479.0,0.150421]
[1729715579026,0.03,66480.0,66475.0,0.300864]
[1729715579250,0.03,66480.0,66470.0,0.22595636]
[1729715579251,0.03,66480.0,66477.0,0.150427]
[1729715579768,0.03,66480.0,66470.0,0.2297941]
[1729715579769,0.03,66480.0,66470.0,0.22595636]
[1729715580003,0.03,66480.0,66477.0,0.150426]
[1729715581175,0.03,66480.0,66473.0,0.300869]
[1729715581408,0.03,66480.0,66477.0,0.150427]
[1729715583034,0.150423,66479.0,66471.0,0.451319]
[1729715583268,0.03,66480.0,66476.0,0.150428]
[1729715583773,0.03,66480.0,66474.0,0.300865]
[1729715583774,0.03,66480.0,66477.0,0.150427]
[1729715584681,0.150415,66483.0,66477.0,0.150427]
[1729715584936,0.30308294,66484.0,66477.0,0.150427]
[1729715585158,0.150414,66483.0,66477.0,0.150427]
[1729715585623,0.00225594,66484.0,66479.0,0.150423]
[1729715585849,0.00225594,66484.0,66479.0,0.300845]
[1729715586074,0.00225594,66484.0,66479.0,0.150422]
[1729715586297,0.47960834,66493.0,66476.0,0.30086]
[1729715586298,0.300788,66492.0,66476.0,0.30086]
[1729715586526,0.005,66493.0,66482.0,0.150416]
[1729715586527,0.150406,66487.0,66482.0,0.150416]
[1729715586756,0.25362234,66494.0,66480.0,0.300838]
[1729715586757,0.150402,66489.0,66480.0,0.300838]
[1729715587463,0.150402,66489.0,66482.0,0.300833]
[1729715587684,0.40912615,66494.0,66482.0,0.150415]
[1729715587685,0.150405,66487.0,66482.0,0.150415]
[1729715587901,0.150405,66487.0,66482.0,0.150416]
[1729715588562,0.03,66484.0,66480.0,0.300838]
[1729715588780,0.180412,66484.0,66478.0,0.150425]
[1729715589010,0.03,66484.0,66480.0,0.300842]
[1729715589519,0.03,66484.0,66482.0,0.150416]
[1729715589769,0.03,66484.0,66483.0,0.150414]
[1729715590018,0.300764,66498.0,66483.0,0.01524188]
[1729715590245,0.22677936,66499.0,66485.0,0.300819]
[1729715590470,0.150383,66497.0,66492.0,0.150392]
[1729715590692,0.30076,66498.0,66493.0,0.00470547]
[1729715590912,0.150389,66494.0,66489.0,0.150399]
[1729715591140,0.30076,66498.0,66490.0,0.00470481]
[1729715591407,0.150389,66494.0,66490.0,0.00470481]
[1729715591638,0.150386,66496.0,66491.0,0.150396]
[1729715591874,0.150388,66495.0,66490.0,0.15510281]
[1729715592099,0.300772,66496.0,66491.0,0.00470481]
[1729715592328,0.300772,66496.0,66489.0,0.1504]
[1729715592329,0.150389,66495.0,66492.0,0.00470481]
[1729715592558,0.150389,66495.0,66489.0,0.1504]
[1729715592559,0.150389,66495.0,66493.0,0.00470481]
[1729715592790,0.30076,66498.0,66494.0,0.00470481]
[1729715592791,0.150381,66498.0,66494.0,0.00470481]
[1729715593006,0.150381,66498.0,66495.0,0.00470481]
[1729715593244,0.150381,66498.0,66492.0,0.150393]
[1729715593461,0.150381,66498.0,66493.0,0.00470481]
[1729715593680,0.00307854,66499.0,66494.0,0.00470481]
[1729715593681,0.03,66495.0,66494.0,0.00470481]
[1729715595962,0.03,66495.0,66494.0,0.33644319]
[1729715596647,0.03,66495.0,66494.0,0.486947]
[1729715596869,0.000823,66499.0,66498.0,0.15038]
[1729715597112,0.000823,66499.0,66498.0,0.01223185]
[1729715597330,0.151201,66499.0,66498.0,0.00470481]
[1729715597561,0.150389,66494.0,66489.0,0.1504]
[1729715597782,0.150389,66494.0,66488.0,0.30832894]
[1729715597783,0.300781,66494.0,66491.0,0.22595636]
[1729715598006,0.150391,66493.0,66492.0,0.00470441]
[1729715598673,0.330774,66496.0,66492.0,0.00470441]
[1729715598907,0.150392,66493.0,66489.0,0.150399]
[1729715599187,0.15039,66494.0,66490.0,0.00470471]
[1729715599407,0.15039,66494.0,66491.0,0.00470471]
[1729715599628,0.15039,66494.0,66491.0,0.150396]
[1729715599842,0.15039,66494.0,66492.0,0.00470471]
[1729715600063,0.330774,66496.0,66489.0,0.150399]
[1729715600298,0.150397,66491.0,66490.0,0.00470468]
[1729715600533,0.150391,66494.0,66490.0,0.15510168]
[1729715600752,0.150388,66495.0,66491.0,0.15509968]
[1729715600976,0.150388,66495.0,66492.0,0.15509768]
[1729715601192,0.150388,66495.0,66492.0,0.150393]
[1729715601627,0.180385,66496.0,66493.0,0.150391]
[1729715601855,0.180385,66496.0,66491.0,0.300792]
[1729715602097,0.180385,66496.0,66492.0,0.15509764]
[1729715602313,0.180385,66496.0,66492.0,0.150393]
[1729715602756,0.180385,66496.0,66493.0,0.150391]
[1729715604647,0.03,66496.0,66492.0,0.150393]
[1729715604861,0.180385,66496.0,66492.0,0.150393]
[1729715605571,0.180385,66496.0,66493.0,0.150391]
[1729715606019,0.03,66496.0,66493.0,0.150391]
[1729715607835,0.03,66496.0,66495.0,0.150387]
[1729715608062,0.03,66496.0,66492.0,0.300788]
[1729715608294,0.03,66496.0,66493.0,0.150391]
[1729715608551,0.03,66496.0,66485.0,0.17382234]
[1729715608767,0.03,66496.0,66495.0,0.150387]
[1729715608985,0.03,66496.0,66494.0,0.150387]
[1729715609211,0.03,66496.0,66495.0,0.150387]
[1729715609460,0.03,66496.0,66493.0,0.30078]
[1729715609681,0.03,66496.0,66494.0,0.150389]
[1729715610612,0.03,66496.0,66491.0,0.30079]
[1729715610613,0.180385,66496.0,66491.0,0.30079]
[1729715610868,0.300776,66495.0,66487.0,0.300808]
[1729715611119,0.300776,66495.0,66475.0,0.400862]
[1729715611120,0.03,66496.0,66488.0,0.30551064]
[1729715611351,0.03,66496.0,66490.0,0.300797]
[1729715611584,0.03,66496.0,66489.0,0.300801]
[1729715611812,0.180385,66496.0,66490.0,0.300797]
[1729715612045,0.300774,66495.0,66490.0,0.001648]
[1729715612263,0.300776,66495.0,66490.0,0.001648]
[1729715612511,0.150389,66494.0,66490.0,0.001648]
[1729715613201,0.03,66496.0,66490.0,0.001648]
[1729715613436,0.150387,66495.0,66490.0,0.152044]
[1729715613900,0.150396,66491.0,66490.0,0.001648]
[1729715614124,0.37709981,66491.0,66490.0,0.001648]
[1729715617869,0.03,66496.0,66490.0,0.17547034]
[1729715618358,0.03,66496.0,66493.0,0.150391]
[1729715618589,0.03,66496.0,66492.0,0.150392]
[1729715618829,0.03,66496.0,66491.0,0.300792]
[1729715619061,0.03,66496.0,66490.0,0.302444]
[1729715619283,0.03,66496.0,66492.0,0.150391]
[1729715619709,0.03,66496.0,66490.0,0.302444]
[1729715619927,0.03,66496.0,66493.0,0.15039]
[1729715620183,0.03,66496.0,66494.0,0.150387]
[1729715620399,0.03,66496.0,66495.0,0.150387]
[1729715621348,0.03,66496.0,66493.0,0.150389]
[1729715621574,0.03,66496.0,66494.0,0.150389]
[1729715621820,0.03,66496.0,66490.0,0.302444]
[1729715621821,0.03,66496.0,66490.0,0.001648]
[1729715622060,0.32421834,66491.0,66490.0,0.001648]
[1729715622289,0.47472215,66491.0,66490.0,0.001648]
[1729715623456,0.72637394,66491.0,66490.0,0.001648]
[1729715623700,0.150425,66478.0,66477.0,0.001646]
[1729715623936,0.67532345,66478.0,66477.0,0.001646]
[1729715624159,0.63028137,66478.0,66477.0,0.001646]
[1729715624378,0.58412881,66478.0,66477.0,0.001646]
[1729715624607,0.47912881,66478.0,66477.0,0.001646]
[1729715624830,0.38842881,66478.0,66477.0,0.001646]
[1729715625300,0.150425,66478.0,66477.0,0.001646]
[1729715625746,0.155425,66478.0,66477.0,0.001646]
[1729715625969,0.150425,66478.0,66477.0,0.001646]
[1729715627109,0.15268116,66478.0,66477.0,0.001646]
[1729715627359,0.00225616,66478.0,66477.0,0.001646]
[1729715627613,0.09008416,66492.0,66477.0,0.17546834]
[1729715627614,0.04502683,66492.0,66477.0,0.17546834]
[1729715627860,0.06756907,66493.0,66477.0,0.17546834]
[1729715627861,0.22595636,66493.0,66478.0,0.300851]
[1729715628102,0.22595636,66493.0,66481.0,0.150418]
[1729715628103,0.150402,66489.0,66481.0,0.150418]
[1729715628340,0.17464534,66499.0,66479.0,0.300845]
[1729715628341,0.005823,66499.0,66488.0,0.17382234]
[1729715628588,0.005823,66499.0,66482.0,0.15351198]
[1729715628589,0.22595636,66498.0,66484.0,0.17382234]
[1729715628838,0.005823,66499.0,66484.0,0.17382234]
[1729715628839,0.150385,66496.0,66488.0,0.150402]
[1729715629103,0.300765,66497.0,66484.0,0.17382234]
[1729715629357,0.150387,66495.0,66487.0,0.150403]
[1729715629571,0.150387,66495.0,66488.0,0.150402]
[1729715631036,0.150387,66495.0,66489.0,0.1504]
[1729715631264,0.150387,66495.0,66488.0,0.150403]
[1729715633334,0.150387,66495.0,66486.0,0.52677136]
[1729715633562,0.150391,66494.0,66487.0,0.150405]
[1729715634689,0.150394,66492.0,66485.0,0.150409]
[1729715634918,0.30076,66498.0,66483.0,0.300824]
[1729715635138,0.150397,66491.0,66483.0,0.30479613]
[1729715635407,0.150392,66493.0,66486.0,0.150407]
[1729715636086,0.000823,66499.0,66483.0,0.00397213]
[1729715636087,0.1504,66490.0,66483.0,0.00397213]
[1729715636307,0.000823,66499.0,66486.0,0.22595636]
[1729715636539,0.150394,66492.0,66485.0,0.150408]
[1729715637004,0.150394,66492.0,66481.0,0.300836]
[1729715637005,0.150399,66490.0,66483.0,0.150412]
[1729715637220,0.000824,66495.0,66486.0,0.22595636]
[1729715637221,0.300783,66493.0,66486.0,0.22595636]
[1729715637453,0.000824,66495.0,66481.0,0.300837]
[1729715637675,0.150392,66493.0,66486.0,0.150406]
[1729715638543,0.300784,66493.0,66481.0,0.300837]
[1729715638770,0.000824,66495.0,66479.0,0.70452407]
[1729715638987,0.1504,66489.0,66482.0,0.150415]
[1729715639210,0.150397,66491.0,66484.0,0.150411]
[1729715639444,0.300783,66493.0,66484.0,0.150411]
[1729715639678,0.150399,66490.0,66484.0,0.150411]
[1729715640120,0.150396,66492.0,66484.0,0.300824]
[1729715640336,0.150396,66492.0,66482.0,0.300831]
[1729715640337,0.150396,66492.0,66483.0,0.300828]
[1729715640573,0.300779,66494.0,66480.0,0.15050381]
[1729715640802,0.150393,66493.0,66486.0,0.150406]
[1729715641237,0.300788,66492.0,66481.0,0.300837]
[1729715641455,0.300788,66492.0,66484.0,0.15041]
[1729715641680,0.300792,66491.0,66482.0,0.150416]
[1729715641972,0.150402,66489.0,66482.0,0.300832]
[1729715642200,0.150402,66489.0,66483.0,0.150412]
[1729715642423,0.150398,66491.0,66484.0,0.150411]
[1729715643808,0.150398,66491.0,66482.0,0.300832]
[1729715643809,0.150398,66490.0,66482.0,0.300832]
[1729715644043,0.150398,66490.0,66483.0,0.150413]
[1729715644273,0.150401,66489.0,66482.0,0.150416]
[1729715644521,0.300797,66490.0,66479.0,0.40368207]
[1729715644734,0.601576,66492.0,66479.0,0.00390337]
[1729715644957,0.150407,66487.0,66480.0,0.22595636]
[1729715645183,0.150407,66486.0,66480.0,0.37637636]
[1729715645417,0.300783,66493.0,66480.0,0.37637636]
[1729715645643,0.150406,66487.0,66480.0,0.15042]
[1729715645870,0.150406,66487.0,66481.0,0.150418]
[1729715646093,0.150406,66487.0,66478.0,0.22595636]
[1729715646094,0.000824,66495.0,66478.0,0.22595636]
[1729715646317,0.150416,66483.0,66478.0,0.22595636]
[1729715646533,0.300815,66486.0,66478.0,0.22595636]
[1729715646770,0.150412,66484.0,66478.0,0.37638036]
[1729715647001,0.300815,66486.0,66477.0,0.30630778]
[1729715647002,0.300815,66486.0,66477.0,0.00545578]
[1729715647259,0.22595636,66490.0,66477.0,0.001646]
[1729715647474,0.300846,66480.0,66477.0,0.001646]
[1729715647699,0.300835,66482.0,66477.0,0.001646]
[1729715647700,0.300837,66481.0,66477.0,0.001646]
[1729715647921,0.150424,66479.0,66477.0,0.001646]
[1729715648156,0.3457935,66494.0,66479.0,0.300846]
[1729715648381,0.22595636,66491.0,66478.0,0.34852234]
[1729715648611,0.150398,66490.0,66485.0,0.150408]
[1729715648835,0.150394,66492.0,66486.0,0.150406]
[1729715649052,0.150396,66491.0,66486.0,0.150406]
[1729715649275,0.150396,66491.0,66485.0,0.150408]
[1729715649490,0.000824,66495.0,66488.0,0.150401]
[1729715649763,0.150393,66493.0,66488.0,0.150401]
[1729715649988,0.150394,66492.0,66488.0,0.150401]
[1729715650202,0.150394,66492.0,66487.0,0.150404]
[1729715650432,0.000824,66495.0,66487.0,0.150404]
[1729715650646,0.150397,66491.0,66487.0,0.150404]
[1729715650870,0.000824,66495.0,66488.0,0.150403]
[1729715650871,0.151212,66495.0,66488.0,0.150403]
[1729715651129,0.3016,66495.0,66485.0,0.300819]
[1729715651625,0.150395,66492.0,66488.0,0.150401]
[1729715652357,0.300786,66493.0,66483.0,0.47464934]
[1729715652586,0.300792,66491.0,66480.0,0.150419]
[1729715652804,0.300788,66492.0,66477.0,0.082846]
[1729715653038,0.300792,66491.0,66480.0,0.00470505]
[1729715653271,0.150408,66486.0,66481.0,0.150417]
[1729715653508,0.150408,66486.0,66482.0,0.150416]
[1729715653756,0.0758,66493.0,66480.0,0.300839]
[1729715653757,0.0758,66493.0,66483.0,0.150413]
[1729715653987,0.300792,66491.0,66479.0,0.23140768]
[1729715654224,0.150404,66488.0,66482.0,0.150415]
[1729715654469,0.300801,66489.0,66480.0,0.15042]
[1729715654697,0.0758,66493.0,66479.0,0.001648]
[1729715654698,0.150419,66481.0,66479.0,0.001648]
[1729715654967,0.150409,66485.0,66480.0,0.15042]
[1729715655205,0.15050381,66492.0,66482.0,0.150415]
[1729715655413,0.300792,66491.0,66479.0,0.152069]
[1729715655651,0.15041,66485.0,66479.0,0.152069]
[1729715655892,0.150404,66488.0,66479.0,0.001648]
[1729715656125,0.301601,66495.0,66479.0,0.001648]
[1729715656126,0.300779,66494.0,66486.0,0.150407]
[1729715656359,0.300779,66494.0,66487.0,0.150404]
[1729715656360,0.150393,66493.0,66487.0,0.150404]
[1729715656804,0.150396,66491.0,66486.0,0.150407]
[1729715657966,0.000824,66495.0,66491.0,0.150394]
[1729715658183,0.000824,66495.0,66491.0,0.150395]
[1729715658409,0.000824,66495.0,66491.0,0.150396]
[1729715658649,0.0030796,66495.0,66492.0,0.150392]
[1729715658911,0.000824,66495.0,66492.0,0.150392]
[1729715659151,0.000824,66495.0,66489.0,0.17382234]
[1729715659152,0.000824,66495.0,66490.0,0.300797]
[1729715659396,0.000824,66495.0,66491.0,0.150394]
[1729715659620,0.000824,66495.0,66494.0,0.150389]
[1729715659838,0.000824,66495.0,66494.0,0.15810097]
[1729715660329,0.000824,66495.0,66494.0,0.3161312]
[1729715660548,0.000824,66495.0,66494.0,0.31312389]
[1729715662169,0.000824,66495.0,66494.0,0.31710201]
[1729715662386,0.000824,66495.0,66494.0,0.30957559]
[1729715663096,0.000824,66495.0,66494.0,0.30957485]
[1729715664235,0.000824,66495.0,66494.0,0.00470392]
[1729715664455,0.000824,66495.0,66494.0,0.15509292]
[1729715664663,0.000824,66495.0,66494.0,0.00470392]
[1729715664878,0.000824,66495.0,66494.0,0.150389]
[1729715665315,0.000824,66495.0,66494.0,0.15509312]
[1729715665762,0.000824,66495.0,66494.0,0.150389]
[1729715666633,0.000824,66495.0,66494.0,0.15509315]
[1729715667573,0.000824,66495.0,66494.0,0.150389]
[1729715671431,0.000824,66495.0,66494.0,0.15509315]
[1729715672328,0.000824,66495.0,66494.0,0.150389]
[1729715676497,0.000824,66495.0,66494.0,0.15509314]
[1729715682055,0.000824,66495.0,66494.0,0.15810062]
[1729715682309,0.000824,66495.0,66494.0,0.15339648]
[1729715682526,0.000824,66495.0,66494.0,0.15810052]
[1729715683623,0.000824,66495.0,66494.0,0.15509304]
[1729715686068,0.000824,66495.0,66494.0,0.15509318]
[1729715689454,0.000824,66495.0,66494.0,0.16261988]
[1729715689685,0.000824,66495.0,66494.0,0.16261989]
[1729715692147,0.000824,66495.0,66494.0,0.3131237]
[1729715693507,0.000824,66495.0,66494.0,0.42436607]
[1729715700563,0.000824,66495.0,66494.0,0.63260844]
[1729715701749,0.000824,66495.0,66494.0,0.76021972]
[1729715703420,0.000824,66495.0,66494.0,0.76021872]
[1729715703649,0.000824,66495.0,66494.0,0.78272436]
[1729715705689,0.000824,66495.0,66494.0,0.71520744]
[1729715706172,0.000824,66495.0,66494.0,0.4927227]
[1729715706407,0.000824,66495.0,66494.0,0.60396507]
[1729715706635,0.000824,66495.0,66494.0,0.67159134]
[1729715707073,0.000824,66495.0,66494.0,0.65936145]
[1729715707290,0.000824,66495.0,66494.0,0.67159135]
[1729715707972,0.000824,66495.0,66494.0,0.57459135]
[1729715709321,0.000824,66495.0,66494.0,0.57459764]
[1729715709538,0.000824,66495.0,66494.0,0.59714183]
[1729715709821,0.000824,66495.0,66494.0,0.61820745]
[1729715710053,0.000824,66495.0,66494.0,0.70836948]
[1729715710289,0.000824,66495.0,66494.0,0.59712711]
[1729715710992,0.000824,66495.0,66494.0,0.61820745]
[1729715711254,0.000824,66495.0,66494.0,0.60597755]
[1729715711475,0.000824,66495.0,66494.0,0.61820725]
[1729715712413,0.000824,66495.0,66494.0,0.60597755]
[1729715714532,0.000824,66495.0,66494.0,0.61820725]
[1729715714760,0.000824,66495.0,66494.0,0.60597755]
[1729715715197,0.000824,66495.0,66494.0,0.38349281]
[1729715715413,0.000824,66495.0,66494.0,0.49473518]
[1729715719709,0.000824,66495.0,66494.0,0.49943891]
[1729715720188,0.000824,66495.0,66494.0,0.49473518]
[1729715720429,0.000824,66495.0,66494.0,0.49943891]
[1729715722276,0.000824,66495.0,66494.0,0.41683891]
[1729715724649,0.18966637,66495.0,66494.0,0.00470373]
[1729715724903,0.150392,66493.0,66490.0,0.001648]
[1729715725169,0.150393,66493.0,66490.0,0.001648]
[1729715725407,0.171924,66495.0,66490.0,0.001648]
[1729715725677,0.000824,66495.0,66494.0,0.26163137]
[1729715726137,0.000824,66495.0,66494.0,0.52808184]
[1729715726382,0.000824,66495.0,66494.0,0.41683947]
[1729715726616,0.000824,66495.0,66494.0,0.57818867]
[1729715726849,0.000824,66495.0,66494.0,0.65628867]
[1729715727077,0.000824,66495.0,66494.0,0.61118184]
[1729715728701,0.000824,66495.0,66494.0,0.67881128]
[1729715728927,0.00041811,66495.0,66494.0,0.61118184]
[1729715729154,0.00041811,66495.0,66494.0,0.70135646]
[1729715729621,0.00041811,66495.0,66494.0,0.47887172]
[1729715729843,0.00041811,66495.0,66494.0,0.59011409]
[1729715730307,0.00041811,66495.0,66494.0,0.70135646]
[1729715732148,0.00041811,66495.0,66494.0,0.70525299]
[1729715732599,0.00041811,66495.0,66494.0,0.503836]
[1729715732854,0.52746236,66515.0,66503.0,0.150367]
[1729715732855,0.22595636,66509.0,66503.0,0.150367]
[1729715733107,0.22595636,66509.0,66504.0,0.00470429]
[1729715733343,0.23125983,66515.0,66503.0,0.15050381]
[1729715733553,0.150349,66512.0,66504.0,0.00470343]
[1729715733779,0.150349,66512.0,66503.0,0.30087181]
[1729715734021,0.150349,66512.0,66504.0,0.00470343]
[1729715734262,0.000824,66509.0,66503.0,0.15050381]
[1729715734484,0.000824,66509.0,66504.0,0.00470343]
[1729715734722,0.000824,66509.0,66503.0,0.30087081]
[1729715734951,0.000824,66509.0,66504.0,0.00470343]
[1729715735173,0.000824,66509.0,66504.0,0.150366]
[1729715737629,0.000824,66509.0,66503.0,0.15050381]
[1729715737847,0.000824,66509.0,66504.0,0.15506943]
[1729715738057,0.000824,66509.0,66504.0,0.150366]
[1729715738482,0.000824,66509.0,66505.0,0.150363]
[1729715740441,0.000824,66509.0,66504.0,0.150365]
[1729715740872,0.000824,66509.0,66505.0,0.150363]
[1729715741705,0.000824,66509.0,66505.0,0.150362]
[1729715750247,0.000824,66509.0,66505.0,0.150364]
[1729715751568,0.000824,66509.0,66506.0,0.150361]
[1729715751786,0.000824,66509.0,66504.0,0.150364]
[1729715752053,0.000824,66509.0,66503.0,0.45288381]
[1729715752268,0.000824,66509.0,66505.0,0.150364]
[1729715753797,0.000824,66509.0,66506.0,0.15036]
[1729715755426,0.000824,66509.0,66508.0,0.150357]
[1729715755694,0.000824,66509.0,66508.0,0.43180657]
[1729715755925,0.000824,66509.0,66508.0,0.81794894]
[1729715756165,0.000824,66509.0,66508.0,0.84294894]
[1729715756413,0.000824,66509.0,66508.0,0.84675222]
[1729715756627,0.000824,66509.0,66508.0,0.95799459]
[1729715756847,0.000824,66509.0,66508.0,0.84675222]
[1729715758023,0.000824,66509.0,66508.0,0.95799295]
[1729715758971,0.000824,66509.0,66508.0,0.84675058]
[1729715759423,0.000824,66509.0,66508.0,0.95799295]
[1729715760405,0.000824,66509.0,66508.0,1.07025759]
[1729715761363,0.000824,66509.0,66508.0,0.95799295]
[1729715762574,0.000824,66509.0,66508.0,1.04773742]
[1729715762983,0.000824,66509.0,66508.0,0.93649505]
[1729715763665,0.000824,66509.0,66508.0,0.93648012]
[1729715764132,0.000823,66515.0,66514.0,0.165344]
[1729715764378,0.000823,66515.0,66514.0,0.85688655]
[1729715764594,0.000823,66515.0,66514.0,0.85388044]
[1729715765072,0.000823,66515.0,66514.0,0.85588044]
[1729715765291,0.000823,66515.0,66514.0,0.87888044]
[1729715765950,0.000823,66515.0,66514.0,0.92374126]
[1729715766397,0.000823,66515.0,66514.0,0.6313957]
[1729715766610,0.000823,66515.0,66514.0,0.85588044]
[1729715767263,0.000823,66515.0,66514.0,0.87688044]
[1729715767493,0.000823,66515.0,66514.0,0.87888044]
[1729715769233,0.000852,66532.0,66531.0,0.26654737]
[1729715769448,0.000852,66532.0,66531.0,0.53129921]
[1729715769666,0.000852,66532.0,66531.0,0.52829355]
[1729715771840,0.000852,66532.0,66531.0,0.41705118]
[1729715774295,0.000852,66532.0,66531.0,0.52829355]
[1729715774724,0.000852,66532.0,66531.0,0.41705118]
[1729715776240,0.000852,66532.0,66531.0,0.30080881]
[1729715776466,0.000852,66532.0,66531.0,0.41205118]
[1729715781162,0.000852,66532.0,66531.0,0.52329355]
[1729715781635,0.000852,66532.0,66531.0,0.41205118]
[1729715785105,0.000852,66532.0,66531.0,0.52799454]
[1729715785345,0.000852,66532.0,66531.0,0.61489454]
[1729715785579,0.00067105,66532.0,66531.0,0.61489454]
[1729715786065,0.00067105,66532.0,66531.0,0.61019355]
[1729715786290,0.00067105,66532.0,66531.0,0.72019355]
[1729715786742,0.00067105,66532.0,66531.0,0.83343592]
[1729715786967,0.00067105,66532.0,66531.0,0.74319355]
[1729715787462,0.00067105,66532.0,66531.0,0.72019355]
[1729715788414,0.00067105,66532.0,66531.0,0.51705118]
[1729715788664,0.00067105,66532.0,66531.0,0.62829355]
[1729715790548,0.00067105,66532.0,66531.0,0.51205118]
[1729715791017,0.00067105,66532.0,66531.0,0.41205118]
[1729715792231,0.00067105,66532.0,66531.0,0.41675221]
[1729715795559,0.00067105,66532.0,66515.0,0.11124237]
[1729715795560,0.17457105,66532.0,66515.0,0.11124237]
[1729715795804,0.17457105,66532.0,66525.0,0.150318]
[1729715796063,0.0758,66531.0,66523.0,0.150322]
[1729715796303,0.0758,66531.0,66516.0,0.15050381]
[1729715796304,0.300648,66523.0,66520.0,0.22595636]
[1729715796532,0.15032,66525.0,66520.0,0.22595636]
[1729715796762,0.0924,66526.0,66516.0,0.11124237]
[1729715796988,0.0924,66526.0,66517.0,0.23065883]
[1729715797215,0.0924,66526.0,66517.0,0.22595636]
[1729715797216,0.150319,66525.0,66517.0,0.22595636]
[1729715797453,0.242717,66526.0,66517.0,0.37629336]
[1729715797960,0.0924,66526.0,66519.0,0.11124237]
[1729715799359,0.0924,66526.0,66519.0,0.26157437]
[1729715799591,0.0924,66526.0,66524.0,0.11124237]
[1729715800751,0.0924,66526.0,66521.0,0.11124237]
[1729715802965,0.0924,66526.0,66521.0,0.26157037]
[1729715803217,0.0924,66526.0,66521.0,0.11124237]
[1729715803934,0.0924,66526.0,66519.0,0.150332]
[1729715804603,0.0924,66526.0,66520.0,0.15033]
[1729715804839,0.0924,66526.0,66520.0,0.150328]
[1729715805064,0.0924,66526.0,66519.0,0.300665]
[1729715805290,0.0924,66526.0,66521.0,0.150327]
[1729715805592,0.0924,66526.0,66519.0,0.150331]
[1729715805821,0.0924,66526.0,66520.0,0.150329]
[1729715806048,0.0924,66526.0,66521.0,0.150328]
[1729715806513,0.0924,66526.0,66519.0,0.300665]
[1729715806731,0.0924,66526.0,66520.0,0.15033]
[1729715806967,0.15033,66521.0,66513.0,0.150344]
[1729715807213,0.150332,66520.0,66512.0,0.26159037]
[1729715807448,0.150339,66516.0,66508.0,0.001646]
[1729715807672,0.150339,66516.0,66511.0,0.22595636]
[1729715808405,0.150339,66516.0,66508.0,0.001646]
[1729715808874,0.242839,66516.0,66508.0,0.001646]
[1729715809101,0.320739,66516.0,66508.0,0.001646]
[1729715810298,0.320739,66516.0,66515.0,0.000749]
[1729715812176,0.47624281,66516.0,66515.0,0.000749]
[1729715815373,0.47124281,66516.0,66515.0,0.000749]
[1729715815598,0.320739,66516.0,66515.0,0.000749]
[1729715829358,0.150339,66516.0,66515.0,0.000749]
[1729715829581,0.305665,66520.0,66515.0,0.000749]
[1729715829582,0.005,66520.0,66515.0,0.000749]
[1729715829814,0.150334,66519.0,66515.0,0.000749]
[1729715830499,0.0972,66522.0,66515.0,0.000749]
[1729715830500,0.150335,66518.0,66515.0,0.000749]
[1729715830708,0.005,66520.0,66515.0,0.000749]
[1729715830709,0.155331,66520.0,66515.0,0.000749]
[1729715831357,0.000823,66516.0,66515.0,0.000749]
[1729715833633,0.000823,66516.0,66515.0,0.2622734]
[1729715835009,0.000823,66516.0,66515.0,0.26697605]
[1729715835447,0.000823,66516.0,66515.0,0.2622734]